fUST/lending_fUST_20250513
["ID","MTS","AMOUNT","RATE_DAILY","PERIOD"]
[360893719,1747125037819,-1200.0,0.00016899,2]
[360893721,1747125037829,-585.13004654,0.00017425,2]
[360893723,1747125037838,-5000.0,0.00017426,2]
[360893725,1747125037847,-404.0,0.00017772,2]
[360893727,1747125037857,-236.04889616,0.00018117,2]
[360893730,1747125037866,-500.0,0.00018217,2]
[360893733,1747125037875,-500.0,0.00018217,2]
[360893735,1747125037885,-500.0,0.00018217,2]
[360893737,1747125037894,-590.7527463,0.00018217,2]
[360893739,1747125037904,-500.0,0.00018217,2]
[360893741,1747125037913,-500.0,0.00018217,2]
[360893743,1747125037923,-500.0,0.00018217,2]
[360893745,1747125037932,-649.13814613,0.00018217,2]
[360893747,1747125037941,-500.0,0.00018217,2]
[360893749,1747125037951,-500.0,0.00018217,2]
[360893751,1747125037960,-500.0,0.00018217,2]
[360893753,1747125037970,-500.0,0.00018217,2]
[360893755,1747125037980,-500.0,0.00018217,2]
[360893757,1747125037990,-500.0,0.00018217,2]
[360893759,1747125037999,-500.0,0.00018217,2]
[360893761,1747125038009,-500.0,0.00018217,2]
[360893763,1747125038020,-500.0,0.00018217,2]
[360893765,1747125038030,-500.0,0.00018217,2]
[360893767,1747125038039,-500.0,0.00018217,2]
[360893769,1747125038049,-500.0,0.00018217,2]
[360893771,1747125038058,-500.0,0.00018217,2]
[360893773,1747125038068,-500.0,0.00018217,2]
[360893775,1747125038077,-5000.0,0.00018218,2]
[360893777,1747125038086,-2592.35456011,0.00018218,2]
[360893780,1747125038099,-2407.64543989,0.00018218,2]
[360893782,1747125038108,-603.24011326,0.00018218,2]
[360893841,1747125040068,-1070.80000004,0.00018218,2]
[360893842,1747125040080,-3325.9598867,0.00018218,2]
[360893843,1747125040089,-5000.0,0.00018218,2]
[360893844,1747125040098,-5000.0,0.00018218,2]
[360893845,1747125040107,-5000.0,0.00018301,2]
[360893846,1747125040116,-160.0,0.00018301,2]
[360893847,1747125040126,-160.0,0.00018301,2]
[360893848,1747125040135,-212.19047112,0.00018301,2]
[360893849,1747125040144,-160.0,0.00018301,2]
[360893850,1747125040154,-422.24190663,0.00018301,2]
[360893851,1747125040165,-997.88380159,0.00018301,2]
[360893852,1747125040174,-160.0,0.00018301,2]
[360893853,1747125040182,-9673.18824625,0.00018301,2]
[360893875,1747125043000,-919.75335228,0.000179,2]
[360893876,1747125043009,-5000.0,0.00018035,2]
[360893877,1747125043019,-919.75335207,0.00018141,2]
[360893878,1747125043028,-2952.23828902,0.00018301,2]
[360893879,1747125043038,-160.0,0.00018301,2]
[360893880,1747125043047,-160.0,0.00018301,2]
[360893881,1747125043057,-160.0,0.00018301,2]
[360893882,1747125043066,-160.0,0.00018301,2]
[360893883,1747125043076,-214.952,0.00018322,2]
[360893884,1747125043085,-919.75335207,0.00018383,2]
[360893885,1747125043095,-919.75335207,0.00018624,2]
[360893886,1747125043105,-236.04889611,0.00018763,2]
[360893887,1747125043114,-5000.0,0.00018849,2]
[360893888,1747125043123,-919.75335207,0.00018866,2]
[360893889,1747125043133,-215.08848376,0.000189,2]
[360893890,1747125043143,-262.9121069,0.00019082,2]
[360893891,1747125043153,-5000.0,0.00019093,2]
[360893892,1747125043163,-232.8,0.000191,2]
[360893894,1747125043172,-919.75335207,0.00019107,2]
[360893895,1747125043183,-500.0,0.00019173,2]
[360893897,1747125043197,-500.0,0.00019173,2]
[360893899,1747125043207,-500.0,0.00019173,2]
[360893900,1747125043216,-500.0,0.00019173,2]
[360893902,1747125043226,-500.0,0.00019173,2]
[360893904,1747125043235,-501.30685635,0.00019178,2]
[360893905,1747125043244,-151.0,0.00019178,2]
[360893907,1747125043254,-156.945136,0.00019178,2]
[360893908,1747125043263,-151.0,0.00019178,2]
[360893909,1747125043273,-151.0,0.00019178,2]
[360893910,1747125043282,-151.0,0.00019178,2]
[360893911,1747125043292,-151.0,0.00019178,2]
[360893912,1747125043301,-151.0,0.00019178,2]
[360893913,1747125043311,-151.0,0.00019178,2]
[360893914,1747125043320,-151.0,0.00019178,2]
[360893915,1747125043330,-151.0,0.00019178,2]
[360893916,1747125043340,-151.0,0.00019178,2]
[360893917,1747125043349,-151.0,0.00019178,2]
[360893918,1747125043360,-151.0,0.00019178,2]
[360893919,1747125043370,-151.0,0.00019178,2]
[360893920,1747125043379,-151.0,0.00019178,2]
[360893921,1747125043389,-151.0,0.00019178,2]
[360893922,1747125043398,-151.0,0.00019178,2]
[360893923,1747125043407,-151.0,0.00019178,2]
[360893924,1747125043417,-151.0,0.00019178,2]
[360893925,1747125043426,-151.0,0.00019178,2]
[360893926,1747125043435,-225.93115,0.00019178,2]
[360893927,1747125043444,-405.60982417,0.00019178,2]
[360893928,1747125043455,-400.0,0.00019178,2]
[360893929,1747125043464,-400.0,0.00019178,2]
[360893930,1747125043474,-400.0,0.00019178,2]
[360893931,1747125043484,-400.0,0.00019178,2]
[360893932,1747125043494,-201.00557268,0.00019178,2]
[360893933,1747125043504,-400.0,0.00019178,2]
[360893934,1747125043515,-1167.31,0.00019178,2]
[360893935,1747125043524,-400.0,0.00019178,2]
[360893936,1747125043536,-257.311916,0.00019178,2]
[360893937,1747125043545,-509.39,0.00019178,2]
[360893938,1747125043554,-600.47,0.00019178,2]
[360893939,1747125043564,-400.0,0.00019178,2]
[360893940,1747125043574,-959.03,0.00019178,2]
[360893941,1747125043584,-400.0,0.00019178,2]
[360893942,1747125043593,-400.0,0.00019178,2]
[360893943,1747125043603,-720.35,0.00019178,2]
[360893944,1747125043613,-400.0,0.00019178,2]
[360893945,1747125043623,-462.32,0.00019178,2]
[360893946,1747125043632,-400.0,0.00019178,2]
[360893947,1747125043642,-400.0,0.00019178,2]
[360893948,1747125043652,-400.0,0.00019178,2]
[360893949,1747125043661,-663.9,0.00019178,2]
[360893950,1747125043671,-400.0,0.00019178,2]
[360893951,1747125043680,-400.0,0.00019178,2]
[360893952,1747125043690,-400.0,0.00019178,2]
[360893953,1747125043699,-400.0,0.00019178,2]
[360893954,1747125043709,-616.58,0.00019178,2]
[360893955,1747125043718,-400.0,0.00019178,2]
[360893956,1747125043727,-400.0,0.00019178,2]
[360893957,1747125043737,-400.0,0.00019178,2]
[360893958,1747125043747,-455.92,0.00019178,2]
[360893959,1747125043756,-400.0,0.00019178,2]
[360893960,1747125043765,-538.73,0.00019178,2]
[360893961,1747125043775,-400.0,0.00019178,2]
[360893962,1747125043785,-400.0,0.00019178,2]
[360893963,1747125043795,-400.0,0.00019178,2]
[360893964,1747125043806,-437.78910016,0.00019178,2]
[360893965,1747125043816,-400.0,0.00019178,2]
[360893966,1747125043825,-400.0,0.00019178,2]
[360893967,1747125043835,-400.0,0.00019178,2]
[360893968,1747125043844,-1000.0,0.00019178,2]
[360893969,1747125043853,-400.0,0.00019178,2]
[360893970,1747125043862,-400.0,0.00019178,2]
[360893971,1747125043871,-400.0,0.00019178,2]
[360893972,1747125043881,-400.0,0.00019178,2]
[360893973,1747125043890,-400.0,0.00019178,2]
[360893974,1747125043899,-400.0,0.00019178,2]
[360893975,1747125043908,-400.0,0.00019178,2]
[360893976,1747125043918,-400.0,0.00019178,2]
[360893977,1747125043927,-400.0,0.00019178,2]
[360893978,1747125043936,-400.0,0.00019178,2]
[360893979,1747125043945,-1730.67,0.00019178,2]
[360893980,1747125043954,-400.0,0.00019178,2]
[360893981,1747125043963,-493.08,0.00019178,2]
[360893982,1747125043972,-400.0,0.00019178,2]
[360893983,1747125043982,-400.0,0.00019178,2]
[360893984,1747125043991,-400.0,0.00019178,2]
[360893985,1747125044000,-400.0,0.00019178,2]
[360893986,1747125044010,-400.0,0.00019178,2]
[360893987,1747125044019,-400.0,0.00019178,2]
[360893988,1747125044028,-400.0,0.00019178,2]
[360893989,1747125044037,-929.33,0.00019178,2]
[360893990,1747125044046,-179.42504338,0.00019178,2]
[360893991,1747125044056,-400.0,0.00019178,2]
[360893992,1747125044065,-400.0,0.00019178,2]
[360893993,1747125044075,-804.37,0.00019178,2]
[360893994,1747125044084,-400.0,0.00019178,2]
[360893995,1747125044093,-638.88,0.00019178,2]
[360893996,1747125044103,-400.0,0.00019178,2]
[360893997,1747125044112,-572.95,0.00019178,2]
[360893998,1747125044122,-813.13,0.00019178,2]
[360893999,1747125044132,-400.0,0.00019178,2]
[360894000,1747125044141,-400.0,0.00019178,2]
[360894001,1747125044150,-400.0,0.00019178,2]
[360894002,1747125044159,-400.0,0.00019178,2]
[360894003,1747125044168,-400.0,0.00019178,2]
[360894004,1747125044177,-400.0,0.00019178,2]
[360894005,1747125044187,-400.0,0.00019178,2]
[360894006,1747125044196,-400.0,0.00019178,2]
[360894007,1747125044205,-168.62728775,0.00019178,2]
[360894008,1747125044214,-656.99,0.00019178,2]
[360894009,1747125044224,-400.0,0.00019178,2]
[360894010,1747125044234,-400.0,0.00019178,2]
[360894011,1747125044243,-400.0,0.00019178,2]
[360894012,1747125044252,-400.0,0.00019178,2]
[360894013,1747125044262,-400.0,0.00019178,2]
[360894014,1747125044272,-400.0,0.00019178,2]
[360894015,1747125044281,-151.0,0.00019178,2]
[360894016,1747125044291,-113.71705572,0.00019178,2]
[360894017,1747125044311,-37.28294428,0.00019178,2]
[360894018,1747125044322,-151.0,0.00019178,2]
[360894019,1747125044332,-990.93,0.00019178,2]
[360894020,1747125044343,-151.0,0.00019178,2]
[360894021,1747125044354,-151.0,0.00019178,2]
[360894022,1747125044363,-151.0,0.00019178,2]
[360894023,1747125044373,-151.0,0.00019178,2]
[360894024,1747125044383,-151.0,0.00019178,2]
[360894025,1747125044393,-151.0,0.00019178,2]
[360894026,1747125044402,-291.004499,0.00019178,2]
[360894027,1747125044411,-592.24,0.00019178,2]
[360894028,1747125044422,-110.00217005,0.00019178,2]
[360894029,1747125044446,-347.13782995,0.00019178,2]
[360894030,1747125044455,-384.8000012,0.00019178,2]
[360894031,1747125044469,-15.1999988,0.00019178,2]
[360894032,1747125044478,-400.0,0.00019178,2]
[360894033,1747125044487,-400.0,0.00019178,2]
[360894034,1747125044496,-400.0,0.00019178,2]
[360894035,1747125044507,-400.0,0.00019178,2]
[360894036,1747125044516,-400.0,0.00019178,2]
[360894037,1747125044525,-650.9,0.00019178,2]
[360894038,1747125044534,-400.0,0.00019178,2]
[360894039,1747125044544,-400.0,0.00019178,2]
[360894040,1747125044553,-400.0,0.00019178,2]
[360894041,1747125044563,-568.88,0.00019178,2]
[360894042,1747125044573,-400.0,0.00019178,2]
[360894043,1747125044583,-400.0,0.00019178,2]
[360894044,1747125044592,-329.93110023,0.00019178,2]
[360894049,1747125045911,-277.74482076,0.00017425,2]
[360894050,1747125045921,-70.06889977,0.00019178,2]
[360894051,1747125045931,-400.0,0.00019178,2]
[360894052,1747125045940,-400.0,0.00019178,2]
[360894053,1747125045949,-400.0,0.00019178,2]
[360894054,1747125045958,-819.74,0.00019178,2]
[360894055,1747125045967,-203.94627947,0.00019178,2]
[360894056,1747125045983,-196.05372053,0.00019178,2]
[360894057,1747125045992,-446.71,0.00019178,2]
[360894058,1747125046001,-1095.82,0.00019178,2]
[360894059,1747125046010,-316.93844004,0.00019178,2]
[360894060,1747125046019,-400.0,0.00019178,2]
[360894061,1747125046029,-396.03268528,0.00019178,2]
[360894062,1747125046038,-624.33,0.00019178,2]
[360894063,1747125046048,-400.0,0.00019178,2]
[360894064,1747125046057,-413.66794737,0.00019178,2]
[360894065,1747125046067,-383.10934837,0.00019178,2]
[360894066,1747125046076,-400.0,0.00019178,2]
[360894067,1747125046086,-282.041304,0.00019178,2]
[360894068,1747125046095,-400.0,0.00019178,2]
[360894069,1747125046104,-400.0,0.00019178,2]
[360894070,1747125046114,-400.0,0.00019178,2]
[360894071,1747125046123,-675.47,0.00019178,2]
[360894072,1747125046132,-400.0,0.00019178,2]
[360894073,1747125046141,-400.0,0.00019178,2]
[360894074,1747125046151,-400.0,0.00019178,2]
[360894075,1747125046160,-888.27,0.00019178,2]
[360894076,1747125046170,-604.52,0.00019178,2]
[360894077,1747125046180,-400.0,0.00019178,2]
[360894078,1747125046189,-400.0,0.00019178,2]
[360894079,1747125046198,-400.0,0.00019178,2]
[360894080,1747125046207,-400.0,0.00019178,2]
[360894081,1747125046217,-405.61722222,0.00019178,2]
[360894082,1747125046226,-554.93,0.00019178,2]
[360894083,1747125046236,-400.0,0.00019178,2]
[360894084,1747125046251,-400.0,0.00019178,2]
[360894085,1747125046261,-400.0,0.00019178,2]
[360894086,1747125046270,-839.19,0.00019178,2]
[360894087,1747125046280,-400.0,0.00019178,2]
[360894088,1747125046289,-400.0,0.00019178,2]
[360894089,1747125046298,-400.0,0.00019178,2]
[360894090,1747125046307,-1057.06,0.00019178,2]
[360894091,1747125046316,-607.77,0.00019178,2]
[360894092,1747125046325,-400.0,0.00019178,2]
[360894093,1747125046335,-1051.73,0.00019178,2]
[360894094,1747125046344,-400.0,0.00019178,2]
[360894095,1747125046354,-400.0,0.00019178,2]
[360894096,1747125046363,-400.0,0.00019178,2]
[360894097,1747125046372,-856.61,0.00019178,2]
[360894098,1747125046381,-417.15,0.00019178,2]
[360894099,1747125046390,-400.0,0.00019178,2]
[360894100,1747125046399,-400.0,0.00019178,2]
[360894101,1747125046408,-1131.66,0.00019178,2]
[360894102,1747125046417,-239.80242738,0.00019178,2]
[360894103,1747125046427,-400.0,0.00019178,2]
[360894104,1747125046436,-400.0,0.00019178,2]
[360894105,1747125046445,-1565.9,0.00019178,2]
[360894106,1747125046454,-870.41,0.00019178,2]
[360894107,1747125046464,-686.24,0.00019178,2]
[360894108,1747125046473,-400.0,0.00019178,2]
[360894109,1747125046482,-400.0,0.00019178,2]
[360894110,1747125046491,-2419.12,0.00019178,2]
[360894111,1747125046500,-400.0,0.00019178,2]
[360894112,1747125046510,-902.21,0.00019178,2]
[360894113,1747125046519,-400.0,0.00019178,2]
[360894114,1747125046528,-565.33,0.00019178,2]
[360894115,1747125046537,-400.0,0.00019178,2]
[360894116,1747125046546,-400.0,0.00019178,2]
[360894117,1747125046555,-400.0,0.00019178,2]
[360894118,1747125046566,-400.0,0.00019178,2]
[360894119,1747125046575,-400.0,0.00019178,2]
[360894120,1747125046584,-400.0,0.00019178,2]
[360894121,1747125046593,-400.0,0.00019178,2]
[360894122,1747125046603,-481.67,0.00019178,2]
[360894123,1747125046612,-400.0,0.00019178,2]
[360894124,1747125046621,-400.0,0.00019178,2]
[360894125,1747125046630,-1211.03,0.00019178,2]
[360894126,1747125046640,-3098.5,0.00019178,2]
[360894127,1747125046649,-400.0,0.00019178,2]
[360894128,1747125046660,-400.0,0.00019178,2]
[360894129,1747125046669,-400.0,0.00019178,2]
[360894130,1747125046678,-630.77,0.00019178,2]
[360894131,1747125046687,-400.0,0.00019178,2]
[360894132,1747125046696,-400.0,0.00019178,2]
[360894133,1747125046705,-400.0,0.00019178,2]
[360894134,1747125046715,-400.0,0.00019178,2]
[360894135,1747125046724,-1030.4,0.00019178,2]
[360894136,1747125046733,-400.0,0.00019178,2]
[360894137,1747125046743,-354.91643344,0.00019178,2]
[360894172,1747126026117,-5000.0,0.00013562,2]
[360894173,1747126026386,-312.82304,0.00013699,2]
[360894174,1747126026413,-498.0624294,0.00016277,2]
[360894175,1747126026436,-1001.55838792,0.000169,2]
[360894176,1747126026458,-177.0366721,0.00017074,2]
[360894177,1747126026482,-886.41269933,0.00017141,2]
[360894179,1747126033131,-115.1456883,0.00017141,2]
[360894180,1747126033153,-71.99291955,0.00017171,2]
[360894181,1747126037115,-228.00708045,0.00017171,2]
[360894182,1747126037137,-300.0,0.00017171,2]
[360894183,1747126037158,-1200.0,0.00017172,2]
[360894184,1747126037178,-388.3694519,0.00017172,2]
[360894188,1747126045082,-5000.0,0.00017,2]
[360894189,1747126045105,-11.6305481,0.00017172,2]
[360894190,1747126045126,-500.0,0.00017172,2]
[360894191,1747126045149,-500.0,0.00017172,2]
[360894192,1747126045171,-500.0,0.00017172,2]
[360894193,1747126045192,-480.86042472,0.00017172,2]
[360894194,1747126045213,-500.0,0.00017172,2]
[360894195,1747126045236,-500.0,0.00017172,2]
[360894196,1747126045256,-492.07475551,0.00017172,2]
[360894286,1747126232014,-260.99956675,0.00016125,2]
[360894288,1747126232024,-300.0,0.00016224,2]
[360894290,1747126232033,-492.0,0.00016224,2]
[360894292,1747126232042,-24832.0,0.00016225,2]
[360894294,1747126232051,-5000.0,0.000169,2]
[360894296,1747126232060,-5000.0,0.00017,2]
[360894298,1747126232070,-154.90708807,0.00017072,2]
[360894300,1747126232079,-400.0,0.00017171,2]
[360894302,1747126232088,-400.0,0.00017171,2]
[360894304,1747126232098,-1383.15,0.00017171,2]
[360894306,1747126232107,-400.0,0.00017172,2]
[360894308,1747126232117,-400.0,0.00017172,2]
[360894310,1747126232126,-400.0,0.00017172,2]
[360894312,1747126232136,-400.0,0.00017172,2]
[360894314,1747126232145,-400.0,0.00017172,2]
[360894316,1747126232154,-400.0,0.00017172,2]
[360894318,1747126232163,-829.37,0.00017172,2]
[360894320,1747126232172,-400.0,0.00017172,2]
[360894322,1747126232181,-545.05,0.00017172,2]
[360894324,1747126232191,-2565.18,0.00017172,2]
[360894326,1747126232200,-400.0,0.00017172,2]
[360894328,1747126232209,-400.0,0.00017172,2]
[360894330,1747126232218,-9114.89,0.00017172,2]
[360894332,1747126232227,-2742.68,0.00017172,2]
[360894334,1747126232237,-400.0,0.00017172,2]
[360894336,1747126232247,-484.96,0.00017172,2]
[360894338,1747126232257,-400.0,0.00017172,2]
[360894340,1747126232266,-780.72,0.00017172,2]
[360894342,1747126232275,-653.42,0.00017172,2]
[360894344,1747126232284,-7.92524449,0.00017172,2]
[360894346,1747126232293,-500.0,0.00017172,2]
[360894348,1747126232303,-500.0,0.00017172,2]
[360894350,1747126232312,-425.92715804,0.00017172,2]
[360894352,1747126232322,-458.53968842,0.00017172,2]
[360894354,1747126232331,-500.0,0.00017172,2]
[360894356,1747126232340,-500.0,0.00017172,2]
[360894358,1747126232350,-500.0,0.00017172,2]
[360894360,1747126232359,-500.0,0.00017172,2]
[360894362,1747126232369,-500.0,0.00017172,2]
[360894364,1747126232378,-500.0,0.00017172,2]
[360894366,1747126232388,-500.0,0.00017172,2]
[360894368,1747126232398,-500.0,0.00017172,2]
[360894370,1747126232407,-639.63117814,0.00017172,2]
[360894372,1747126232416,-500.0,0.00017172,2]
[360894374,1747126232426,-400.0,0.00017173,2]
[360894376,1747126232435,-400.0,0.00017173,2]
[360894378,1747126232445,-501.24653226,0.00017173,2]
[360894380,1747126232454,-400.0,0.00017173,2]
[360894382,1747126232463,-400.0,0.00017173,2]
[360894384,1747126232473,-400.0,0.00017173,2]
[360894386,1747126232482,-400.0,0.00017173,2]
[360894388,1747126232493,-400.0,0.00017173,2]
[360894390,1747126232502,-400.0,0.00017173,2]
[360894392,1747126232512,-400.0,0.00017173,2]
[360894394,1747126232521,-400.0,0.00017173,2]
[360894396,1747126232531,-400.0,0.00017173,2]
[360894398,1747126232544,-329.70378655,0.00017173,2]
[360894400,1747126232553,-400.0,0.00017173,2]
[360894402,1747126232562,-2215.88,0.00017173,2]
[360894404,1747126232571,-580.81,0.00017173,2]
[360894406,1747126232581,-400.0,0.00017173,2]
[360894408,1747126232590,-400.0,0.00017173,2]
[360894410,1747126232600,-400.0,0.00017173,2]
[360894412,1747126232611,-400.0,0.00017173,2]
[360894414,1747126232620,-400.0,0.00017173,2]
[360894416,1747126232629,-503.69,0.00017173,2]
[360894418,1747126232638,-919.07,0.00017173,2]
[360894420,1747126232647,-1118.67,0.00017173,2]
[360894422,1747126232657,-400.0,0.00017173,2]
[360894424,1747126232666,-400.0,0.00017173,2]
[360894426,1747126232675,-400.0,0.00017173,2]
[360894428,1747126232683,-636.24,0.00017173,2]
[360894430,1747126232692,-400.0,0.00017173,2]
[360894432,1747126232702,-400.0,0.00017173,2]
[360894434,1747126232711,-443.06,0.00017173,2]
[360894436,1747126232720,-400.0,0.00017173,2]
[360894438,1747126232729,-400.0,0.00017173,2]
[360894440,1747126232739,-400.0,0.00017173,2]
[360894442,1747126232748,-595.01,0.00017173,2]
[360894443,1747126232756,-400.0,0.00017173,2]
[360894445,1747126232766,-400.0,0.00017173,2]
[360894447,1747126232775,-354.2731738,0.00017173,2]
[360894449,1747126232785,-400.0,0.00017173,2]
[360894451,1747126232794,-400.0,0.00017173,2]
[360894454,1747126232804,-400.0,0.00017173,2]
[360894456,1747126232814,-15552.4,0.00017173,2]
[360894458,1747126232823,-1592.68,0.00017173,2]
[360894459,1747126232832,-400.0,0.00017173,2]
[360894461,1747126232841,-533.29,0.00017173,2]
[360894463,1747126232851,-400.0,0.00017173,2]
[360894465,1747126232860,-400.0,0.00017173,2]
[360894467,1747126232870,-1000.0,0.00017173,2]
[360894469,1747126232879,-400.0,0.00017173,2]
[360894471,1747126232890,-311.25370756,0.00017173,2]
[360894473,1747126232900,-400.0,0.00017173,2]
[360894475,1747126232909,-549.08,0.00017173,2]
[360894477,1747126232919,-400.0,0.00017173,2]
[360894479,1747126232929,-3986.33,0.00017173,2]
[360894481,1747126232938,-400.0,0.00017173,2]
[360894483,1747126232947,-400.0,0.00017173,2]
[360894485,1747126232961,-400.0,0.00017173,2]
[360894487,1747126232971,-400.0,0.00017173,2]
[360894489,1747126232980,-4537.93,0.00017173,2]
[360894491,1747126232990,-1691.89,0.00017173,2]
[360894494,1747126232999,-400.0,0.00017173,2]
[360894495,1747126233009,-22632.16,0.00017173,2]
[360894497,1747126233018,-400.0,0.00017173,2]
[360894499,1747126233027,-675.82,0.00017173,2]
[360894501,1747126233036,-400.0,0.00017173,2]
[360894503,1747126233046,-787.52,0.00017173,2]
[360894505,1747126233055,-400.0,0.00017173,2]
[360894507,1747126233065,-795.92,0.00017173,2]
[360894509,1747126233075,-3120.17,0.00017173,2]
[360894511,1747126233085,-280.62476682,0.00017173,2]
[360894513,1747126233094,-400.0,0.00017173,2]
[360894515,1747126233104,-400.0,0.00017173,2]
[360894517,1747126233113,-420.30487679,0.00017173,2]
[360894519,1747126233125,-400.0,0.00017173,2]
[360894521,1747126233134,-400.0,0.00017173,2]
[360894523,1747126233144,-966.31,0.00017173,2]
[360894525,1747126233153,-17196.44,0.00017173,2]
[360894527,1747126233163,-567.56,0.00017173,2]
[360894529,1747126233173,-400.0,0.00017173,2]
[360894531,1747126233182,-400.0,0.00017173,2]
[360894533,1747126233192,-427.03,0.00017173,2]
[360894535,1747126233202,-400.0,0.00017173,2]
[360894537,1747126233212,-400.0,0.00017173,2]
[360894538,1747126233221,-400.0,0.00017173,2]
[360894539,1747126233231,-862.11,0.00017173,2]
[360894540,1747126233241,-623.78,0.00017173,2]
[360894541,1747126233250,-444.77,0.00017173,2]
[360894542,1747126233259,-400.0,0.00017173,2]
[360894543,1747126233268,-400.0,0.00017173,2]
[360894544,1747126233278,-785.58,0.00017173,2]
[360894545,1747126233288,-400.0,0.00017173,2]
[360894546,1747126233298,-400.0,0.00017173,2]
[360894547,1747126233307,-3133.64,0.00017173,2]
[360894548,1747126233317,-400.0,0.00017173,2]
[360894549,1747126233326,-3108.05,0.00017173,2]
[360894550,1747126233335,-400.0,0.00017173,2]
[360894551,1747126233344,-1066.83,0.00017173,2]
[360894552,1747126233354,-400.0,0.00017173,2]
[360894554,1747126233363,-400.0,0.00017173,2]
[360894556,1747126233372,-808.88,0.00017173,2]
[360894558,1747126233382,-664.0,0.00017173,2]
[360894560,1747126233392,-2767.77,0.00017173,2]
[360894562,1747126233401,-400.0,0.00017173,2]
[360894564,1747126233411,-400.0,0.00017173,2]
[360894566,1747126233421,-400.0,0.00017173,2]
[360894568,1747126233431,-6940.87323231,0.00017173,2]
[360894571,1747126233445,-467.09929999,0.00017173,2]
[360894573,1747126233458,-31.4274677,0.00017173,2]
[360894575,1747126233467,-151.0,0.00017173,2]
[360894577,1747126233477,-151.0,0.00017173,2]
[360894579,1747126233486,-400.0,0.00017173,2]
[360894581,1747126233496,-5409.45,0.00017173,2]
[360894583,1747126233506,-400.0,0.00017173,2]
[360894585,1747126233515,-400.0,0.00017173,2]
[360894587,1747126233525,-400.0,0.00017173,2]
[360894589,1747126233538,-400.0,0.00017173,2]
[360894591,1747126233548,-400.0,0.00017173,2]
[360894593,1747126233558,-499.41,0.00017173,2]
[360894595,1747126233567,-151.0,0.00017173,2]
[360894597,1747126233576,-642.11,0.00017173,2]
[360894599,1747126233586,-582.44,0.00017173,2]
[360894601,1747126233596,-1193.9,0.00017173,2]
[360894603,1747126233606,-400.0,0.00017173,2]
[360894605,1747126233615,-837.58,0.00017173,2]
[360894607,1747126233625,-1043.36,0.00017173,2]
[360894609,1747126233634,-400.0,0.00017173,2]
[360894610,1747126233644,-3549.79,0.00017173,2]
[360894611,1747126233654,-151.0,0.00017173,2]
[360894612,1747126233664,-534.68,0.00017173,2]
[360894613,1747126233673,-151.0,0.00017173,2]
[360894615,1747126233683,-400.0,0.00017173,2]
[360894617,1747126233692,-400.0,0.00017173,2]
[360894619,1747126233701,-400.0,0.00017173,2]
[360894620,1747126233712,-5196.11,0.00017173,2]
[360894621,1747126233722,-151.0,0.00017174,2]
[360894622,1747126233738,-167.548856,0.00017174,2]
[360894623,1747126233747,-260.99956675,0.00017346,2]
[360894624,1747126233758,-400.0,0.00017445,2]